bitfinex/quotes_ETHUSD_20220220
["timestamp","ask_amount","ask_price","bid_price","bid_amount"]
[1645355449333,0.00262548,2621.3,2620.9,1.60123992]
[1645355449834,0.88024062,2622.0,2620.9,1.6]
[1645355452483,0.00262553,2621.6,2621.1,0.00124643]
[1645355452884,0.00262553,2621.6,2621.1,2.62295801]
[1645355453086,0.00262553,2621.6,2621.2,0.95415]
[1645355453289,0.00262553,2621.6,2621.3,1.62161705]
[1645355453485,3.1025,2622.1,2621.3,1.62161705]
[1645355453689,0.00262554,2621.5,2621.3,2.22161705]
[1645355453886,0.00262554,2621.5,2621.3,0.6]
[1645355454089,0.00262554,2621.5,2621.3,0.3]
[1645355454291,0.00262554,2621.5,2621.4,0.95404]
[1645355454492,0.01049996,2622.0,2621.6,2.13763169]
[1645355454734,1.14769786,2622.5,2621.6,2.13763169]
[1645355454932,1.14769786,2622.5,2621.7,3.8]
[1645355455135,0.01050013,2622.0,2621.7,0.3]
[1645355455332,0.01050013,2622.0,2621.6,3.43763169]
[1645355455531,0.01050013,2622.0,2621.6,3.20784]
[1645355455731,1.14769786,2622.5,2621.6,3.20784]
[1645355456533,1.14769786,2622.5,2621.6,4.12790228]
[1645355456937,1.14769786,2622.5,2621.6,7.62790228]
[1645355457336,0.00262544,2622.2,2621.6,6.70784]
[1645355457935,0.00262544,2622.2,2621.6,3.20784]
[1645355458134,1.14769786,2622.5,2621.6,6.70784]
[1645355458383,0.00262546,2622.0,2621.6,6.70784]
[1645355458583,0.00262546,2622.0,2621.6,3.20784]
[1645355458784,0.00262546,2622.0,2621.6,6.70784]
[1645355459088,0.00262546,2622.0,2621.6,0.3]
[1645355459293,1.14769786,2622.5,2621.7,1.0]
[1645355459489,1.14769786,2622.5,2621.6,1.0008]
[1645355459687,0.00262548,2621.9,2621.6,1.0008]
[1645355460487,2.09572015,2622.5,2621.6,1.0008]
[1645355460690,0.94802229,2622.4,2621.6,0.0008]
[1645355460888,0.00262548,2621.9,2621.6,0.0008]
[1645355461386,0.99913993,2621.7,2621.6,0.0008]
[1645355466490,0.99913993,2621.7,2621.1,1.62174362]
[1645355466690,0.99913993,2621.7,2621.1,2.22254362]
[1645355466890,0.99913993,2621.7,2621.2,1.62174362]
[1645355467490,0.99913993,2621.7,2621.2,2.62174362]
[1645355467690,0.99913993,2621.7,2621.1,1.6008]
[1645355467890,0.99913993,2621.7,2621.2,1.6217281]
[1645355468091,0.00262548,2621.6,2621.2,1.6217281]
[1645355468294,0.00262548,2621.6,2621.2,3.5299581]
[1645355468492,0.00262548,2621.6,2621.3,2.2217281]
[1645355468692,0.00262548,2621.6,2621.4,1.6217281]
[1645355468893,3.0627,2622.2,2621.4,1.6217281]
[1645355469091,3.0627,2622.2,2621.6,0.07630519]
[1645355469291,3.07319975,2622.2,2621.6,1.0]
[1645355469644,0.01049975,2622.2,2621.6,1.0]
[1645355469843,0.01049975,2622.2,2621.6,1.3]
[1645355470242,0.97960017,2622.4,2621.6,1.3]
[1645355470440,0.00262546,2622.0,2621.6,1.3]
[1645355470645,0.00262546,2622.0,2621.7,0.95397]
[1645355471040,0.00262546,2622.0,2621.8,0.6]
[1645355471541,0.00262546,2622.0,2621.6,1.0]
[1645355471542,0.00262547,2622.0,2621.7,0.3]
[1645355471742,0.00262547,2622.0,2621.4,2.0126]
[1645355472343,0.00262547,2622.0,2621.4,1.8219]
[1645355472544,0.94802229,2622.3,2621.4,1.8219]
[1645355472746,0.00262549,2621.8,2621.4,1.8219]
[1645355473794,0.94802229,2622.3,2621.4,1.8219]
[1645355473995,0.00262551,2621.7,2621.4,1.8219]
[1645355474799,0.00262551,2621.7,2621.4,1.8227]
[1645355474998,0.94802229,2622.3,2621.4,1.8227]
[1645355475197,0.00262551,2621.7,2621.4,1.8227]
[1645355475497,1.09068598,2621.6,2621.4,1.8227]
[1645355475696,1.09068598,2621.6,2621.4,0.6008]
[1645355475898,1.09068598,2621.6,2621.4,0.3008]
[1645355476097,1.09068598,2621.6,2621.4,0.0008]
[1645355476499,1.09323936,2621.6,2621.4,0.0008]
[1645355477346,1.09068598,2621.6,2621.4,0.0008]
[1645355477745,1.09323936,2621.6,2621.4,0.0008]
[1645355478146,0.94802229,2621.5,2621.4,0.0008]
[1645355478346,0.95263157,2621.5,2621.4,0.0008]
[1645355478947,5.23202245,2621.6,2621.4,0.0008]
[1645355479146,5.23202245,2621.6,2621.1,0.00117464]
[1645355479147,0.00039339,2621.4,2621.1,0.00117464]
[1645355479852,0.00039339,2621.4,2620.2,7.2572]
[1645355480046,0.95258033,2621.4,2621.1,0.00125296]
[1645355480247,0.00039339,2621.4,2621.1,0.00125296]
[1645355480986,1.04231875,2620.6,2620.4,1.62212955]
[1645355481187,0.00039339,2621.4,2620.4,2.22212955]
[1645355481385,0.00039339,2621.4,2621.1,0.00125296]
[1645355482187,0.00039339,2621.4,2620.5,1.62212955]
[1645355482588,1.16421596,2621.3,2621.1,0.00125296]
[1645355483389,3.64549472,2621.2,2620.1,0.1907]
[1645355483589,3.64570029,2621.2,2621.1,5.298e-05]
[1645355483796,0.00074702,2620.8,2619.8,3.5]
[1645355484090,0.95216663,2620.8,2619.7,7.3220482]
[1645355484290,1.19488775,2620.0,2619.8,1.62250943]
[1645355484957,1.19488775,2620.0,2619.6,0.0020482]
[1645355485149,1.19488775,2620.0,2619.4,0.0020482]
[1645355485349,1.19488775,2620.0,2619.3,0.1907]
[1645355485549,1.19488775,2620.0,2619.4,1.62257153]
[1645355486050,1.19488775,2620.0,2619.3,0.0020482]
[1645355487254,1.19488775,2620.0,2619.5,0.00124767]
[1645355488254,1.19488775,2620.0,2619.3,1.62474935]
[1645355488496,3.092,2620.4,2619.3,1.62474935]
[1645355488497,3.092,2620.4,2619.6,0.00124762]
[1645355488691,1.2288,2620.4,2619.6,0.00124762]
[1645355488895,1.80604702,2620.8,2619.6,0.00329582]
[1645355489299,1.80604702,2620.8,2619.6,0.0020482]
[1645355489499,1.08153763,2620.3,2619.6,0.0020482]
[1645355489796,1.08153763,2620.3,2620.1,0.00124741]
[1645355490594,1.08153763,2620.3,2619.7,0.0020482]
[1645355490995,1.08153763,2620.3,2620.1,0.00124741]
[1645355493041,1.08153763,2620.3,2619.7,7.32848926]
[1645355493339,1.08153763,2620.3,2620.1,0.00124741]
[1645355494144,1.08153763,2620.3,2619.7,0.01053746]
[1645355494339,1.08153763,2620.3,2619.7,0.00848926]
[1645355494541,1.08153763,2620.3,2620.1,0.00124741]
[1645355495340,1.08153763,2620.3,2619.7,0.00848926]
[1645355495739,1.08153763,2620.3,2620.1,0.00124429]
[1645355495987,1.08153763,2620.3,2620.2,0.00847371]
[1645355498891,1.08153763,2620.3,2620.2,0.00153603]
[1645355499094,2.08153763,2620.3,2620.2,0.00153603]
[1645355499495,3.22633763,2620.3,2620.2,0.00153603]
[1645355500745,3.22633763,2620.3,2620.1,0.00124427]
[1645355501345,3.22633763,2620.3,2620.2,0.00847371]
[1645355502951,2.22633763,2620.3,2620.2,0.00847371]
[1645355503149,3.22633763,2620.3,2620.2,0.00847371]
[1645355504495,2.22633763,2620.3,2620.2,0.00847371]
[1645355515038,1.08153763,2620.3,2620.2,0.00847371]
[1645355515436,1.2167,2620.7,2620.2,0.00847371]
[1645355516136,1.2167,2620.7,2620.3,0.00124417]
[1645355516536,1.16406668,2620.5,2620.3,0.00124417]
[1645355516937,1.16406668,2620.5,2620.2,0.00847371]
[1645355517338,1.2167,2620.7,2620.3,0.0012442]
[1645355517939,1.80604702,2620.8,2620.3,0.0012442]
[1645355517940,0.00074702,2620.8,2620.3,0.0012442]
[1645355518238,0.00074702,2620.8,2620.2,0.00847371]
[1645355518494,0.00074702,2620.8,2620.4,0.00124415]
[1645355519488,0.00074702,2620.8,2620.2,0.00847371]
[1645355519692,0.00074702,2620.8,2620.5,0.0012441]
[1645355520588,0.00074702,2620.8,2620.2,0.00847371]
[1645355520992,0.00074702,2620.8,2620.5,0.00927543]
[1645355521587,0.95216663,2620.8,2620.5,0.00927543]
[1645355521791,0.00074702,2620.8,2620.5,0.00803135]
[1645355521990,0.95216663,2620.8,2620.5,0.00803135]
[1645355522246,0.00074702,2620.8,2620.5,0.00927543]
[1645355522443,0.95216663,2620.8,2620.5,0.00927543]
[1645355522647,0.95141961,2620.7,2620.5,0.0049416]
[1645355522844,0.95216663,2620.8,2620.5,0.0049416]
[1645355523044,0.95216663,2620.8,2620.5,0.00369752]
[1645355523244,0.95216663,2620.8,2620.5,0.0049416]
[1645355523844,0.95141961,2620.7,2620.5,0.0049416]
[1645355524046,0.95216663,2620.8,2620.5,0.0049416]
[1645355524246,0.95216663,2620.8,2620.5,0.00369752]
[1645355524445,0.95216663,2620.8,2620.5,0.00494162]
[1645355525347,0.95216663,2620.8,2620.5,0.00369752]
[1645355525749,0.95216663,2620.8,2620.5,0.0049416]
[1645355525988,0.95216663,2620.8,2620.5,0.00929623]
[1645355526591,0.95216663,2620.8,2620.5,0.00805215]
[1645355526891,0.95141961,2620.7,2620.5,0.00929623]
[1645355527089,0.00074702,2620.8,2620.5,0.00929623]
[1645355527090,0.95141961,2620.6,2620.5,0.00929623]
[1645355527290,2.44308208,2620.7,2620.5,0.00929623]
[1645355527489,1.44308208,2620.6,2620.5,0.00929623]
[1645355527893,1.0,2620.7,2620.5,0.00805215]
[1645355527894,1.1907,2620.7,2620.5,0.00805215]
[1645355528088,1.1907,2620.7,2620.5,0.00929625]
[1645355528490,1.42632604,2620.6,2620.5,0.00929625]
[1645355528688,6.42519608,2620.6,2620.5,0.00929625]
[1645355529089,6.42519608,2620.6,2620.5,0.00805215]
[1645355529288,1.1907,2620.7,2620.5,0.00805215]
[1645355529492,4.94887004,2620.6,2620.5,0.00805215]
[1645355529745,1.1907,2620.7,2620.5,0.00805215]
[1645355529946,4.94887004,2620.6,2620.5,0.00805215]
[1645355530153,1.1907,2620.7,2620.5,0.00805215]
[1645355530345,0.1907,2620.7,2620.5,0.00805215]
[1645355530547,0.1907,2620.7,2620.5,0.00929625]
[1645355531146,5.13957004,2620.7,2620.5,0.01211823]
[1645355531349,2.09395998,2620.7,2620.5,0.01087413]
[1645355531654,1.42669497,2620.7,2620.5,0.01199382]
[1645355532547,1.42669497,2620.7,2620.5,0.01087413]
[1645355532949,1.42669497,2620.7,2620.5,0.01199382]
[1645355533500,1.42669497,2620.6,2620.5,0.01199382]
[1645355533798,1.16514702,2620.8,2620.5,0.01087413]
[1645355533799,1.90325998,2620.7,2620.5,0.01087413]
[1645355534309,1.42696506,2620.7,2620.5,0.01199382]
[1645355534801,1.16514702,2620.8,2620.5,0.01199382]
[1645355534802,1.42696506,2620.6,2620.5,0.01199382]
[1645355534999,1.42696506,2620.6,2620.5,0.01087413]
[1645355535198,1.42696506,2620.6,2620.5,0.01200626]
[1645355535599,1.42696506,2620.7,2620.5,0.01200626]
[1645355536199,1.42696506,2620.7,2620.5,0.01087413]
[1645355536599,2.59211208,2620.8,2620.5,0.01200626]
[1645355537441,2.59211208,2620.8,2620.5,0.01087413]
[1645355537641,2.59211208,2620.8,2620.5,0.01200624]
[1645355537842,1.42696506,2620.6,2620.5,0.00645069]
[1645355538641,1.42696506,2620.6,2620.5,0.00531858]
[1645355539642,1.42696506,2620.7,2620.5,0.00531858]
[1645355539942,1.42696506,2620.6,2620.5,0.00531858]
[1645355540146,1.16514702,2620.8,2620.5,0.00531858]
[1645355540346,0.00074702,2620.8,2620.7,0.05112996]
[1645355543094,0.00074702,2620.8,2620.6,0.00118494]
[1645355543392,0.00074702,2620.8,2620.5,0.01097521]
[1645355543793,0.00074702,2620.8,2620.6,0.00118494]
[1645355544393,0.00074702,2620.8,2620.7,0.05112996]
[1645355550588,0.00074702,2620.8,2620.1,1.06003561]
[1645355550791,0.00074702,2620.8,2620.1,1.66003561]
[1645355550988,0.00074702,2620.8,2620.6,0.01174381]
[1645355551793,0.00074702,2620.8,2620.6,0.0107197]
[1645355554443,0.00074702,2620.8,2620.6,0.01196131]
[1645355555445,0.00074702,2620.8,2620.6,0.0107197]
[1645355555644,0.00074702,2620.8,2620.6,0.01196131]
[1645355556697,0.00074702,2620.8,2620.6,0.0107197]
[1645355556897,0.00074702,2620.8,2620.6,0.01196131]
[1645355557900,0.00074702,2620.8,2620.6,0.0107197]
[1645355558101,0.00074702,2620.8,2620.6,0.01196131]
[1645355559104,0.00074702,2620.8,2620.6,0.0107197]
[1645355559303,0.00074702,2620.8,2620.6,0.01196131]
[1645355560148,0.00074702,2620.8,2620.6,0.0107197]
[1645355560541,0.00074702,2620.8,2620.6,0.01196131]
[1645355561342,0.00074702,2620.8,2620.6,0.0107197]
[1645355561744,0.00074702,2620.8,2620.6,0.01196131]
[1645355562545,0.00074702,2620.8,2620.6,0.0107197]
[1645355562950,0.00074702,2620.8,2620.6,0.01196131]
[1645355563893,0.00074702,2620.8,2620.6,0.0107197]
[1645355564098,0.00074702,2620.8,2620.6,0.01196131]
[1645355564993,0.00074702,2620.8,2620.6,0.0107197]
[1645355565192,0.00074702,2620.8,2620.6,0.01196131]
[1645355566195,0.00074702,2620.8,2620.6,0.0107197]
[1645355566596,0.00074702,2620.8,2620.6,0.01196131]
[1645355567442,0.00074702,2620.8,2620.6,0.0107197]
[1645355567642,0.00074702,2620.8,2620.6,0.01196131]
[1645355568545,0.00074702,2620.8,2620.6,0.0107197]
[1645355568944,0.00074702,2620.8,2620.6,0.01196131]
[1645355569947,0.00074702,2620.8,2620.6,0.0107197]
[1645355570146,0.00074702,2620.8,2620.6,0.01196131]
[1645355570997,0.00074702,2620.8,2620.6,0.0107197]
[1645355571393,0.00074702,2620.8,2620.6,0.01196131]
[1645355572198,0.00074702,2620.8,2620.6,0.0107197]
[1645355572595,0.00074702,2620.8,2620.6,0.01196131]
[1645355573396,0.00074702,2620.8,2620.6,0.0107197]
[1645355573797,0.00074702,2620.8,2620.6,0.01196131]
[1645355574653,0.00074702,2620.8,2620.6,0.0107197]
[1645355575054,0.00074702,2620.8,2620.6,0.01196131]
[1645355575856,0.00074702,2620.8,2620.6,0.0107197]
[1645355576055,0.00074702,2620.8,2620.6,0.01196131]
[1645355576958,0.00074702,2620.8,2620.6,0.0107197]
[1645355577356,0.00074702,2620.8,2620.6,0.01196131]
[1645355578157,0.00074702,2620.8,2620.6,0.0107197]
[1645355578595,0.00074702,2620.8,2620.6,0.01196131]
[1645355579396,0.00074702,2620.8,2620.6,0.0107197]
[1645355579795,0.00074702,2620.8,2620.6,0.01196131]
[1645355580697,0.95254671,2620.8,2620.6,0.0093834]
[1645355580898,0.00074702,2620.8,2620.6,0.01062501]
[1645355581495,0.95254671,2620.8,2620.6,0.01062501]
[1645355581897,0.95254671,2620.8,2620.6,0.0093834]
[1645355582142,0.95254671,2620.8,2620.6,0.01062501]
[1645355582943,0.00074702,2620.8,2620.6,0.01062501]
[1645355583144,0.00074702,2620.8,2620.6,0.0093834]
[1645355583344,0.00074702,2620.8,2620.6,0.01062501]
[1645355583644,0.95254671,2620.8,2620.6,0.01062501]
[1645355584245,0.95254671,2620.8,2620.6,0.0093834]
[1645355584646,0.95254671,2620.8,2620.6,0.01062501]
[1645355584844,0.00074702,2620.8,2620.6,0.01062501]
[1645355585446,0.00074702,2620.8,2620.6,0.0093834]
[1645355585645,0.00074702,2620.8,2620.6,0.01062501]
[1645355586694,0.00074702,2620.8,2620.6,0.0093834]
[1645355586894,0.00074702,2620.8,2620.6,0.01062501]
[1645355587895,0.00074702,2620.8,2620.6,0.0093834]
[1645355588095,0.00074702,2620.8,2620.6,0.01062501]
[1645355589104,0.00074702,2620.8,2620.6,0.0093834]
[1645355589298,0.00074702,2620.8,2620.6,0.01062501]
[1645355590349,0.00074702,2620.8,2620.7,1.62220188]
[1645355590552,0.00074702,2620.8,2620.7,5.42220188]
[1645355590749,0.00074702,2620.8,2620.7,5.72220188]
[1645355590946,0.00074702,2620.8,2620.7,2.22220188]
[1645355591146,0.00074702,2620.8,2620.7,3.45546335]
[1645355591754,0.00074702,2620.8,2620.7,2.45546335]
[1645355591952,0.00074702,2620.8,2620.7,3.45546335]
[1645355592751,0.00074702,2620.8,2620.7,2.22220188]
[1645355594004,0.00074702,2620.8,2620.7,3.32511963]
[1645355594411,0.00074702,2620.8,2620.7,4.32511963]
[1645355597149,0.00074702,2620.8,2620.7,2.70291775]
[1645355597350,0.00074702,2620.8,2620.7,3.32506383]
[1645355597548,0.00074702,2620.8,2620.7,4.32506383]
[1645355598155,0.00074702,2620.8,2620.7,3.32506383]
[1645355598349,0.00074702,2620.8,2620.7,4.32506383]
[1645355604104,0.00074702,2620.8,2620.7,3.32506383]
[1645355604306,0.00074702,2620.8,2620.7,4.32506383]
[1645355606847,0.00866938,2621.4,2620.7,4.32506383]
[1645355607049,0.00635187,2621.4,2620.8,2.62214608]
[1645355607251,0.00635187,2621.4,2620.9,1.92214608]
[1645355607449,0.00635187,2621.4,2620.7,1.70291775]
[1645355607450,0.00866938,2621.4,2620.7,1.70291775]
[1645355607650,0.00866938,2621.4,2620.8,1.62212915]
[1645355608498,0.00635187,2621.4,2620.8,1.62212915]
[1645355608694,0.00866964,2621.4,2620.8,1.62212915]
[1645355609496,0.00635187,2621.4,2620.8,1.62212915]
[1645355609899,0.00866964,2621.4,2620.8,1.62212915]
[1645355610596,0.00866964,2621.4,2620.7,0.6]
[1645355610794,0.00866964,2621.4,2621.0,0.01108383]
[1645355610795,0.00635187,2621.4,2621.0,0.01108383]
[1645355611194,0.00868542,2621.4,2621.0,0.01108383]
[1645355611996,0.00635187,2621.4,2621.0,0.01108383]
[1645355612251,0.00868549,2621.4,2621.0,0.01108383]
[1645355613251,0.00635187,2621.4,2621.0,0.01108383]
[1645355613452,0.00868549,2621.4,2621.0,0.01108383]
[1645355614253,0.00868549,2621.4,2621.1,0.07136804]
[1645355614452,0.00635187,2621.4,2621.1,0.07136804]
[1645355614652,0.00635187,2621.4,2621.0,0.01108383]
[1645355614653,0.00868418,2621.4,2621.0,0.01108383]
[1645355615452,0.00635187,2621.4,2621.0,0.01108383]
[1645355615898,0.00868418,2621.4,2620.6,5.63631355]
[1645355616100,0.00868418,2621.4,2620.9,0.29897728]
[1645355616299,0.96048387,2621.4,2620.6,1.43631355]
[1645355616703,0.95179969,2621.3,2620.6,1.4353]
[1645355616898,0.95179969,2621.3,2620.6,1.1353]
[1645355617098,0.95179969,2621.3,2620.6,1.13631355]
[1645355617901,0.95815156,2621.4,2620.6,1.1353]
[1645355618102,0.95815156,2621.4,2620.6,1.4353]
[1645355618301,0.95179969,2621.3,2620.6,1.73631354]
[1645355618504,0.95179969,2621.2,2620.6,1.73631354]
[1645355618703,0.95179969,2621.2,2620.6,1.53631354]
[1645355618902,0.95179969,2621.2,2620.6,1.43631354]
[1645355619103,0.95179969,2621.2,2620.6,1.4353]
[1645355619303,0.00635187,2621.4,2620.6,1.13631354]
[1645355619304,0.95179969,2621.3,2620.6,1.13631354]
[1645355619504,0.95179969,2621.1,2620.6,1.13631354]
[1645355619747,0.95179969,2621.1,2620.6,0.00101354]
[1645355620358,0.95179969,2621.3,2620.5,0.01113992]
[1645355620549,0.95815156,2621.4,2620.6,1.62231225]
[1645355620749,0.95179969,2621.3,2620.8,0.01107226]
[1645355621248,0.96048372,2621.4,2620.8,0.01107226]
[1645355621647,0.95815156,2621.4,2620.8,0.01107226]
[1645355622050,0.96048387,2621.4,2620.8,0.01107226]
[1645355622451,0.00868418,2621.4,2620.8,0.01107226]
[1645355622649,0.00635187,2621.4,2620.8,0.01107226]
[1645355622852,0.00635187,2621.4,2620.9,1.62208781]
[1645355623050,0.96048391,2621.4,2620.8,0.01107226]
[1645355623249,0.00868422,2621.4,2620.8,0.01107226]
[1645355623698,0.96048391,2621.4,2620.8,0.01107226]
[1645355623902,0.95815156,2621.4,2620.8,0.01107226]
[1645355624303,0.96048391,2621.4,2620.8,0.01107226]
[1645355624900,0.00868422,2621.4,2620.8,0.01107226]
[1645355625098,0.00635187,2621.4,2620.8,0.01107226]
[1645355625300,0.95815156,2621.4,2620.8,0.01107226]
[1645355625503,0.9604839,2621.4,2620.8,0.01107226]
[1645355625999,0.9604839,2621.4,2620.6,0.00101354]
[1645355626200,0.00868421,2621.4,2620.6,1.6231703]
[1645355626398,0.00868421,2621.4,2620.6,2.62215676]
[1645355626399,0.00635187,2621.4,2620.6,2.62215676]
[1645355626599,0.00868421,2621.4,2620.7,1.62215676]
[1645355626799,0.9604839,2621.4,2620.8,1.62215676]
[1645355627252,0.9604839,2621.4,2620.8,0.3]
[1645355627450,0.95815156,2621.4,2620.8,0.3]
[1645355627851,0.95815156,2621.4,2620.7,0.3]
[1645355627852,0.9604839,2621.4,2620.7,0.3]
[1645355628053,0.9604839,2621.4,2620.8,1.62214098]
[1645355628250,0.9604839,2621.4,2620.9,0.3]
[1645355628649,0.9604839,2621.4,2620.7,1.0]
[1645355628849,0.95815156,2621.4,2620.8,1.62213109]
[1645355629049,0.96048394,2621.4,2620.6,2.73661354]
[1645355629250,0.96048394,2621.4,2620.7,1.62214483]
[1645355629451,0.00868425,2621.4,2620.7,2.62214483]
[1645355629652,0.00868425,2621.4,2620.8,1.62214483]
[1645355629849,0.00868425,2621.4,2620.9,0.3]
[1645355630150,0.00635187,2621.4,2620.8,0.3]
[1645355630349,0.00868417,2621.4,2620.9,1.62211079]
[1645355630557,0.00868417,2621.4,2620.9,0.3]
[1645355630897,0.00868417,2621.4,2620.7,1.0]
[1645355631101,0.95815156,2621.4,2620.9,0.01106817]
[1645355631299,0.95815156,2621.4,2620.9,0.31106817]
[1645355631503,0.96048394,2621.4,2620.9,0.01106817]
[1645355631699,0.96048394,2621.4,2620.9,0.31106817]
[1645355631901,0.00868425,2621.4,2620.9,0.01106817]
[1645355632302,0.95815156,2621.4,2620.9,0.01106817]
[1645355632701,0.96048394,2621.4,2620.9,0.01106817]
[1645355633302,0.00868425,2621.4,2621.0,1.62208956]
[1645355633505,0.00635187,2621.4,2621.0,1.92208956]
[1645355633701,0.00635187,2621.4,2621.0,0.6]
[1645355633904,0.00868425,2621.4,2621.0,0.3]
[1645355634305,0.00868425,2621.4,2620.9,0.31106817]
[1645355634504,0.00868425,2621.4,2621.0,1.62207574]
[1645355634751,0.00868425,2621.4,2621.0,2.22207574]
[1645355634952,0.00635187,2621.4,2621.0,0.6]
[1645355635151,0.00868425,2621.4,2621.0,0.6]
[1645355635350,0.00868425,2621.4,2621.0,0.3]
[1645355635554,0.00868425,2621.4,2620.9,0.31106817]
[1645355635756,0.00868425,2621.4,2621.0,1.62208498]
[1645355635952,0.00635187,2621.4,2621.2,0.01107237]
[1645355636150,0.00868425,2621.4,2621.2,0.01107237]
[1645355637252,0.00635187,2621.4,2621.2,0.01107237]
[1645355637457,0.00868431,2621.4,2621.2,0.01107237]
[1645355638410,0.00635187,2621.4,2621.2,0.01107237]
[1645355638608,0.00868431,2621.4,2621.2,0.01107237]
[1645355639508,0.00635187,2621.4,2621.2,0.01107237]
[1645355639807,0.00868431,2621.4,2621.2,0.01107237]
[1645355640605,0.00868431,2621.4,2621.2,0.00952809]
[1645355640809,0.00635187,2621.4,2621.2,0.00952809]
[1645355641014,0.00868431,2621.4,2620.9,0.01109626]
[1645355641207,0.00868431,2621.4,2621.0,1.62212171]
[1645355641607,0.00868431,2621.4,2621.0,1.92212171]
[1645355641807,0.00868431,2621.4,2621.0,0.3]
[1645355642150,0.00868428,2621.4,2620.9,0.31109626]
[1645355642353,0.00868428,2621.4,2621.0,1.62212383]
[1645355642552,0.95179969,2621.3,2620.9,0.01109626]
[1645355642756,0.96048397,2621.4,2620.9,0.01109626]
[1645355642953,0.95179969,2621.3,2620.9,0.01109626]
[1645355643455,0.96048394,2621.4,2620.9,0.01109626]
[1645355643657,0.95179969,2621.3,2620.9,0.01109626]
[1645355644053,0.70179969,2621.3,2620.9,0.01109626]
[1645355644456,0.00868425,2621.4,2620.9,0.01109626]
[1645355644457,0.00635187,2621.4,2620.9,0.01109626]
[1645355644756,0.00868421,2621.4,2620.9,0.01109626]
[1645355645556,0.00635187,2621.4,2620.9,0.01109626]
[1645355645755,0.00868425,2621.4,2620.9,0.01109626]
[1645355646000,0.00868425,2621.4,2620.6,1.32731354]
[1645355646204,0.00868425,2621.4,2620.6,1.62731354]
[1645355646402,0.00868425,2621.4,2620.7,1.62221444]
[1645355646800,0.00635187,2621.4,2620.7,1.62221444]
[1645355647000,0.00868417,2621.4,2620.7,1.62221444]
[1645355647899,0.00635187,2621.4,2620.7,1.62221444]
[1645355648302,0.00868417,2621.4,2620.7,1.62221444]
[1645355649102,0.00635187,2621.4,2620.7,1.62221444]
[1645355649304,0.00635187,2621.4,2620.7,6.12221444]
[1645355649505,0.00635187,2621.4,2620.8,1.62221444]
[1645355649506,0.00868417,2621.4,2620.8,1.62221444]
[1645355649756,0.00868417,2621.4,2620.9,0.3]
[1645355650057,0.00868417,2621.4,2621.0,1.62221444]
[1645355650260,0.00868417,2621.4,2621.0,2.87643444]
[1645355650459,0.00868417,2621.4,2621.1,1.62202865]
[1645355650460,0.00635187,2621.4,2621.1,1.62202865]
[1645355650763,0.00868425,2621.4,2621.1,1.92202865]
[1645355650958,0.00233238,2621.4,2621.1,0.3]
[1645355651758,0.00233245,2621.4,2621.1,0.3]
[1645355652158,0.00233245,2621.4,2621.3,0.33986444]
[1645355652368,0.00233245,2621.4,2621.3,1.96168623]
[1645355652663,0.00635187,2621.8,2621.4,38.95404]
[1645355652858,0.00635187,2622.1,2621.5,2.57587179]
[1645355653065,0.95708427,2622.2,2621.6,1.62182179]
[1645355653259,0.00635187,2622.1,2621.7,0.3]
[1645355653703,0.00635187,2622.1,2621.6,0.3]
[1645355653905,0.95708427,2622.3,2621.8,0.95381]
[1645355653906,0.00635187,2622.3,2621.8,0.95381]
[1645355654212,0.00635187,2622.6,2621.9,1.62160253]
[1645355654608,0.00635187,2622.6,2622.0,3.5]
[1645355654802,0.00635187,2622.6,2622.3,0.88350105]
[1645355655006,0.96343614,2622.8,2622.3,1.18350105]
[1645355655202,0.00635187,2622.6,2622.3,1.48350105]
[1645355655402,0.95708427,2622.9,2622.3,2.48350105]
[1645355655605,0.00262358,2622.6,2622.3,2.48350105]
[1645355656003,0.00262358,2622.6,2622.3,1.6]
[1645355656403,0.00635187,2622.8,2622.3,1.6]
[1645355656604,0.00262358,2622.6,2622.3,1.6]
[1645355656808,0.00262358,2622.6,2622.3,0.6]
[1645355657006,0.00262358,2622.6,2622.3,0.3]
[1645355657260,0.00262358,2622.6,2622.4,0.3]
[1645355657655,0.04670994,2623.0,2622.3,1.3]
[1645355657855,0.00262358,2622.6,2622.3,1.3]
[1645355658258,0.00262358,2622.6,2622.2,1.63135545]
[1645355658454,0.00262358,2622.6,2622.3,1.0]
[1645355658655,0.00262358,2622.6,2622.2,1.63135545]
[1645355658853,1.00379421,2623.0,2622.2,1.63135545]
[1645355659057,0.00262358,2622.5,2622.2,5.13135545]
[1645355659456,0.00262358,2622.5,2622.3,1.0]
[1645355659857,0.00262358,2622.5,2622.3,1.3]
[1645355660053,0.04035807,2623.0,2622.3,1.3]
[1645355660257,0.00262358,2622.5,2622.3,0.3]
[1645355660460,0.00262358,2622.5,2622.2,0.3]
[1645355660654,0.00347441,2623.0,2622.2,21.5]
[1645355660910,0.00347441,2623.0,2622.5,0.95364]
[1645355661106,0.00347441,2623.0,2622.6,0.3]
[1645355663007,0.00347441,2623.0,2622.6,11.072]
[1645355663407,0.00347441,2623.0,2622.7,1.0]
[1645355663807,0.00609784,2623.0,2622.7,1.3]
[1645355664664,0.00609784,2623.0,2622.6,6.37327928]
[1645355664862,0.00347441,2623.0,2622.6,6.372]
[1645355665163,0.00609788,2623.0,2622.6,6.37327928]
[1645355665362,0.00609788,2623.0,2622.6,4.10127928]
[1645355665761,0.00609788,2623.0,2622.8,0.01113544]
[1645355665964,0.00347441,2623.0,2622.8,0.01113544]
[1645355666361,0.00609784,2623.0,2622.8,0.01113544]
[1645355667164,0.00347441,2623.0,2622.8,0.01113544]
[1645355667362,0.00609792,2623.0,2622.8,0.01113544]
[1645355668402,0.00347441,2623.0,2622.8,0.01113544]
[1645355668603,0.00609792,2623.0,2622.8,0.01113544]
[1645355669613,0.00347441,2623.0,2622.8,0.01113544]
[1645355669810,0.00609792,2623.0,2622.8,0.01113544]
[1645355670908,0.00347441,2623.0,2622.8,0.01113544]
[1645355671106,0.00347441,2623.0,2622.7,3.5]
[1645355671107,0.00609792,2623.0,2622.7,3.5]
[1645355671409,0.00609792,2623.0,2622.8,12.65]
[1645355671612,0.00635187,2623.5,2623.0,38.0]
[1645355671808,0.01684329,2623.7,2623.2,0.95329]
[1645355672007,2.92158427,2624.1,2623.3,3.5]
[1645355672008,0.00635187,2623.9,2623.3,3.5]
[1645355672260,0.00635187,2623.9,2623.3,3.8]
[1645355672468,0.00635187,2623.9,2623.5,0.29735958]
[1645355672862,0.00635187,2624.2,2623.5,3.79735958]
[1645355673058,0.00635187,2624.3,2623.7,0.95316]
[1645355673259,0.00635187,2624.3,2623.8,3.8]
[1645355673459,0.00635187,2624.6,2623.8,3.8]
[1645355673659,0.1905,2625.1,2623.9,1.0]
[1645355673660,0.00635187,2624.7,2623.9,1.0]
[1645355673860,2.29758427,2625.1,2624.0,5.772]
[1645355673861,0.00635187,2624.8,2624.0,5.772]
[1645355674060,0.4984,2625.2,2624.1,14.87502]